bitfinex-derivatives/quotes_ETHF0:USTF0_20250326
["timestamp","ask_amount","ask_price","bid_price","bid_amount"]
[1743020279065,1.4367,2006.4,2006.3,2.34973]
[1743020282477,2.43349,2006.4,2006.3,0.99683]
[1743020283377,2.4335,2006.4,2006.3,0.99683]
[1743020287380,2.43349,2006.4,2006.3,0.99683]
[1743020289582,1.4367,2006.4,2006.3,0.99683]
[1743020290781,2.43349,2006.4,2006.3,0.99683]
[1743020291384,1.4367,2006.4,2006.3,0.99683]
[1743020292276,2.43349,2006.4,2006.3,0.99683]
[1743020297677,2.43349,2006.4,2006.3,1.69161563]
[1743020298085,2.43349,2006.4,2006.3,0.99683]
[1743020298284,2.43349,2006.4,2006.3,1.69176931]
[1743020302082,2.43349,2006.4,2006.3,1.69205961]
[1743020303987,1.4367,2006.4,2006.3,1.69212045]
[1743020304291,2.43349,2006.4,2006.3,2.43872045]
[1743020306588,1.4367,2006.4,2006.3,2.43872045]
[1743020306791,2.43349,2006.4,2006.3,2.43872045]
[1743020306993,1.4367,2006.4,2006.3,2.43872045]
[1743020308090,1.4367,2006.4,2006.3,3.21602045]
[1743020309598,3.2078,2006.5,2006.4,0.99679]
[1743020309894,5.60454,2006.5,2006.4,2.35849]
[1743020310197,4.6078,2006.5,2006.4,2.35849]
[1743020310494,1.4,2006.5,2006.4,2.35849]
[1743020310695,1.4,2006.5,2006.4,3.05327385]
[1743020310892,2.39674,2006.5,2006.4,3.05327385]
[1743020311099,1.4,2006.5,2006.4,3.05327385]
[1743020311393,2.39674,2006.5,2006.4,3.05327385]
[1743020311595,2.39674,2006.5,2006.4,3.05311421]
[1743020311797,2.39674,2006.5,2006.4,3.05298268]
[1743020313396,2.39674,2006.5,2006.4,2.35849]
[1743020314998,1.4,2006.5,2006.4,2.35849]
[1743020315401,2.39674,2006.5,2006.4,2.35849]
[1743020316194,1.4,2006.5,2006.4,2.35849]
[1743020316399,1.4,2006.5,2006.4,3.05282071]
[1743020316792,2.39674,2006.5,2006.4,3.05282071]
[1743020317197,2.39674,2006.5,2006.4,2.35849]
[1743020319992,0.99679,2006.4,2006.1,2.49223]
[1743020320301,0.99679,2006.4,2006.3,0.99679]
[1743020320503,0.99679,2006.4,2006.3,1.6912899]
[1743020320806,0.99679,2006.4,2006.3,3.1192899]
[1743020321104,0.99679,2006.4,2006.3,3.11913715]
[1743020324909,0.99679,2006.4,2006.3,2.42479]
[1743020325114,0.99679,2006.4,2006.3,3.11917566]
[1743020325715,4.20457,2006.5,2006.4,0.99679]
[1743020325920,0.7389,2006.6,2006.5,0.99674]
[1743020326124,2.72719,2006.6,2006.5,2.33434]
[1743020326715,2.72719,2006.6,2006.5,0.99674]
[1743020327115,2.72719,2006.6,2006.5,1.69090566]
[1743020328309,2.72719,2006.6,2006.5,0.99674]
[1743020328921,0.99674,2006.5,2006.4,0.99676]
[1743020331512,1.76544,2006.5,2006.4,0.99676]
[1743020333420,3.13824,2006.5,2006.4,0.99676]
[1743020334923,0.99679,2006.4,2006.3,2.35879]
[1743020335123,2.40619,2006.4,2006.3,3.05286082]
[1743020336421,2.40619,2006.4,2006.3,3.05292141]
[1743020337114,2.40619,2006.4,2006.3,2.05613141]
[1743020337319,5.61399,2006.4,2006.3,1.362]
[1743020338120,5.61399,2006.4,2006.3,2.35883]
[1743020339418,5.61399,2006.4,2006.3,1.362]
[1743020339815,5.61399,2006.4,2006.3,2.35883]
[1743020340226,5.61399,2006.4,2006.3,1.362]
[1743020340427,5.61399,2006.4,2006.3,2.35883]
[1743020340826,5.61399,2006.4,2006.3,1.362]
[1743020341524,5.61399,2006.4,2006.3,2.35883]
[1743020344425,5.61399,2006.4,2006.3,1.362]
[1743020344827,2.49222,2006.2,2005.9,0.00746]
[1743020345021,4.7131,2006.1,2006.0,2.12586921]
[1743020345322,6.0138,2006.1,2006.0,2.12586921]
[1743020345718,7.01073,2006.1,2006.0,2.12586921]
[1743020345920,7.01073,2006.1,2006.0,3.12284921]
[1743020346121,3.80293,2006.1,2006.0,3.12284921]
[1743020347532,3.80293,2006.1,2006.0,3.1224453]
[1743020351424,3.80293,2006.1,2006.0,3.12231843]
[1743020352227,4.2006,2006.4,2006.1,2.49231]
[1743020352532,1.4396,2006.3,2006.2,1.71168]
[1743020352730,0.9928,2006.4,2006.3,0.99683]
[1743020352928,0.9928,2006.4,2006.3,3.04187073]
[1743020353234,0.9928,2006.4,2006.3,3.04170547]
[1743020354726,5.85224,2007.0,2006.6,0.99669]
[1743020354727,0.99655,2006.9,2006.6,0.99669]
[1743020354930,0.99655,2006.9,2006.8,0.99659]
[1743020355835,0.00746454,2007.1,2006.7,4.00058]
[1743020356136,0.00746454,2007.1,2007.0,0.99649]
[1743020357334,0.00746454,2007.1,2006.9,1.3808]
[1743020357335,1.00392454,2007.1,2006.9,1.3808]
[1743020357628,1.00392454,2007.1,2006.7,7.36158]
[1743020357629,1.3555,2007.0,2006.7,1.509]
[1743020357831,3.07102,2007.0,2006.7,4.87]
[1743020358034,0.7393,2006.9,2006.8,2.39029]
[1743020358334,1.4214,2006.9,2006.8,2.39029]
[1743020358542,1.4214,2006.9,2006.8,5.59809]
[1743020358838,0.00746454,2007.1,2007.0,0.99649]
[1743020359134,1.42886454,2007.1,2007.0,0.99649]
[1743020359530,1.42886454,2007.1,2007.0,1.74499]
[1743020362739,2.42530454,2007.1,2007.0,0.99649]
[1743020362939,1.42886454,2007.1,2007.0,0.99649]
[1743020365345,2.42530454,2007.1,2007.0,0.99649]
[1743020365538,2.42530454,2007.1,2006.9,1.3937]
[1743020365539,0.99649,2007.0,2006.9,2.39019]
[1743020365739,1.3755,2007.0,2006.9,2.39019]
[1743020365938,5.57979,2007.0,2006.9,1.3937]
[1743020366139,0.99662,2006.8,2006.5,6.5668]
[1743020366339,0.7556,2006.7,2006.6,2.42409]
[1743020366536,0.7556,2006.7,2006.5,3.2078]
[1743020366537,3.12774,2006.7,2006.5,3.2078]
[1743020366745,3.22783,2006.6,2006.1,0.99692]
[1743020366942,0.99688,2006.2,2006.1,2.42432]
[1743020367738,0.99687,2006.3,2006.2,0.99688]
[1743020368050,1.3027,2006.4,2006.3,0.99683]
[1743020368447,2.29949,2006.4,2006.3,0.99683]
[1743020368745,1.3027,2006.4,2006.3,0.99683]
[1743020368946,2.29949,2006.4,2006.3,0.99683]
[1743020369148,1.3027,2006.4,2006.3,0.99683]
[1743020370946,3.2078,2006.7,2006.3,2.49202]
[1743020371138,4.6275,2006.7,2006.6,0.99669]
[1743020371348,0.99661,2006.8,2006.7,0.99664]
[1743020372241,0.99661,2006.8,2006.7,41.79664]
[1743020373254,0.99661,2006.8,2006.7,0.99664]
[1743020373953,0.99674,2006.5,2006.4,0.99677]
[1743020374355,3.81893,2006.6,2006.5,0.99674]
[1743020375156,0.99674,2006.5,2006.4,2.37834]
[1743020375348,2.51431,2006.6,2006.5,0.99674]
[1743020376747,0.99657,2006.9,2006.8,0.99654]
[1743020377151,0.99664,2006.8,2006.7,0.99663]
[1743020377347,0.99664,2006.8,2006.7,2.35563]
[1743020379660,1.71298,2006.9,2006.8,0.99659]
[1743020379851,0.7164,2006.9,2006.8,0.99659]
[1743020380157,0.00746454,2007.1,2007.0,0.99649]
[1743020380655,1.00390454,2007.1,2007.0,0.99649]
[1743020380857,1.00390454,2007.1,2007.0,2.36679]
[1743020383160,0.00746454,2007.1,2007.0,2.36679]
[1743020383553,1.00390454,2007.1,2007.0,2.36679]
[1743020384169,4.54e-06,2007.1,2007.0,5.72479]
[1743020384356,4.54e-06,2007.1,2007.0,6.41775514]
[1743020384663,4.54e-06,2007.1,2007.0,7.52632263]
[1743020385464,4.54e-06,2007.1,2007.0,7.52597673]
[1743020385849,4.54e-06,2007.1,2007.0,48.32597673]
[1743020387164,4.54e-06,2007.1,2007.0,48.32506422]
[1743020387364,4.54e-06,2007.1,2007.0,47.21720316]
[1743020390967,4.54e-06,2007.1,2007.0,47.21648921]
[1743020392960,4.54e-06,2007.1,2007.0,47.21623973]
[1743020397870,0.7303,2007.8,2007.0,56.05209973]
[1743020398075,1.4032,2007.6,2007.5,0.99624]
[1743020398269,1.4032,2007.6,2007.5,3.07914]
[1743020398468,1.4032,2007.6,2007.5,3.83954]
[1743020398773,1.4032,2007.6,2007.5,44.63954]
[1743020407073,1.4032,2007.6,2007.5,45.33098775]
[1743020407272,0.73776454,2007.8,2007.7,0.99614]
[1743020407468,0.00746454,2007.8,2007.7,4.20394]
[1743020407667,0.00746454,2007.8,2007.7,7.55794]
[1743020407866,0.00746454,2007.8,2007.7,8.24933826]
[1743020408270,4.54e-06,2007.8,2007.7,8.24933826]
[1743020408467,4.54e-06,2007.8,2007.7,9.35546535]
[1743020408676,4.54e-06,2007.8,2007.7,8.24933826]
[1743020408973,4.54e-06,2007.8,2007.7,50.15541251]
[1743020409676,4.54e-06,2007.8,2007.7,49.04933826]
[1743020410271,4.54e-06,2007.8,2007.7,45.69533826]
[1743020410467,4.54e-06,2007.8,2007.7,49.04933826]
[1743020410664,4.54e-06,2007.8,2007.7,48.35794]
[1743020411073,4.54e-06,2007.8,2007.7,49.04952135]
[1743020411274,4.54e-06,2007.8,2007.7,49.04960088]
[1743020411477,1.39790454,2007.8,2007.7,49.04960088]
[1743020416171,2.39399454,2007.8,2007.7,3.2078]
[1743020416376,1.39790454,2007.8,2007.7,7.55694]
[1743020416674,1.39790454,2007.8,2007.7,49.76384]
[1743020417972,2.39399454,2007.8,2007.7,44.0078]
[1743020418171,0.99621,2007.6,2007.5,3.353]
[1743020418566,0.99621,2007.6,2007.5,44.153]
[1743020418775,2.44009,2007.6,2007.5,44.153]
[1743020418969,1.4439,2007.6,2007.5,45.14924]
[1743020419169,2.44009,2007.6,2007.5,44.153]
[1743020419373,2.44009,2007.6,2007.5,40.8]
[1743020419374,3.75199,2007.6,2007.5,40.8]
[1743020420175,3.75199,2007.6,2007.3,0.00746454]
[1743020420176,0.99629,2007.4,2007.3,0.00746454]
[1743020420484,4.20409,2007.4,2007.3,0.00746454]
[1743020425076,3.2078,2007.4,2007.3,0.00746454]
[1743020425279,3.2078,2007.4,2007.3,4.35680454]
[1743020425477,4.54e-06,2007.8,2007.7,0.99614]
[1743020425878,0.99609454,2007.8,2007.7,40.8]
[1743020426082,0.99609454,2007.8,2007.7,42.154]
[1743020426288,2.29719454,2007.8,2007.7,42.154]
[1743020427288,2.29719454,2007.8,2007.7,43.15014]
[1743020427487,2.29719454,2007.8,2007.7,42.154]
[1743020428691,2.29719454,2007.8,2007.7,1.354]
[1743020430704,2.29719454,2007.8,2007.7,2.35014]
[1743020431087,4.54e-06,2007.8,2007.7,2.35014]
[1743020432292,4.54e-06,2007.8,2007.7,3.04231973]
[1743020433288,4.54e-06,2007.8,2007.7,4.14960167]
[1743020433881,4.54e-06,2007.8,2007.7,47.44960167]
[1743020434084,4.54e-06,2007.8,2007.7,44.94960167]
[1743020434478,4.54e-06,2007.8,2007.7,4.14960167]
[1743020434990,4.54e-06,2007.8,2007.7,44.94960167]
[1743020435183,4.54e-06,2007.8,2007.7,44.9477793]
[1743020435791,4.54e-06,2007.8,2007.7,44.94782459]
[1743020439093,4.54e-06,2007.8,2007.7,49.79782459]
[1743020439591,0.6678,2008.5,2008.1,2.48981]
[1743020439895,2.99416,2008.5,2008.3,0.99584]
[1743020440191,2.99416,2008.5,2008.4,2.33969]
[1743020440391,2.99416,2008.5,2008.4,1.3439]
[1743020441889,1.9984,2008.5,2008.4,2.33969]
[1743020442095,2.99414,2008.5,2008.4,2.33969]
[1743020442492,2.99414,2008.5,2008.4,1.3439]
[1743020442789,0.99572,2008.6,2008.5,0.99574]
[1743020442990,2.34012,2008.6,2008.5,4.34674]
[1743020443197,1.3444,2008.6,2008.5,4.34674]
[1743020443392,1.43636454,2008.7,2008.6,0.99569]
[1743020443592,1.43636454,2008.7,2008.6,3.09549]
[1743020443593,0.00746454,2008.7,2008.6,3.09549]
[1743020443896,0.00746454,2008.7,2008.6,3.80009]
[1743020444389,0.00746454,2008.7,2008.6,4.48858136]
[1743020444590,0.00746454,2008.7,2008.6,8.08990024]
[1743020444782,1.3444,2009.2,2009.1,0.99545]
[1743020444988,1.4003,2009.4,2009.3,0.99535]
[1743020445185,3.2078,2009.8,2009.3,6.5578]
[1743020445186,1.3444,2009.7,2009.3,6.5578]
[1743020445386,2.33955,2009.7,2009.4,0.99527]
[1743020445588,1.3444,2009.7,2009.4,1.4044]
[1743020445795,1.3444,2009.6,2009.4,2.39969]
[1743020445994,1.3444,2009.6,2009.5,1.4318]
[1743020446697,2.3396,2009.6,2009.5,1.4318]
[1743020446998,3.0098,2009.6,2009.5,1.4318]
[1743020448493,0.99529,2009.5,2009.3,0.00746454]
[1743020448686,2.37289,2009.5,2009.3,2.43460454]
[1743020448891,2.37289,2009.5,2009.4,1.4318]
[1743020453601,7.0854,2009.5,2008.6,4.20347]
[1743020453795,3.2078,2009.1,2008.7,3.348]
[1743020453996,2.39483,2009.0,2008.7,3.348]
[1743020454299,2.39483,2009.0,2008.7,4.34361]
[1743020454898,1.4169,2008.9,2008.8,1.3355]
[1743020456310,1.4169,2008.9,2008.8,2.33109]
[1743020462208,4.20313,2009.4,2009.2,0.99536]
[1743020462408,2.0188,2009.3,2009.2,0.99536]
[1743020462603,2.6862,2009.3,2009.2,0.99536]
[1743020462798,0.6674,2009.3,2009.2,0.99536]
[1743020463013,2.6862,2009.6,2009.4,0.99527]
[1743020463212,0.99533,2009.4,2009.2,3.2078]
[1743020463711,0.99536,2009.3,2009.2,0.99539]
[1743020464105,4.20313,2009.4,2009.1,3.348]
[1743020464300,0.99528,2009.5,2009.1,4.34345]
[1743020464504,1.66268,2009.5,2009.3,0.99533]
[1743020464711,0.99538,2009.3,2009.2,0.9954]
[1743020465212,0.99533,2009.4,2009.2,0.9954]
[1743020465514,0.99533,2009.4,2009.3,0.99535]
[1743020465813,0.9953,2009.4,2009.1,3.348]
[1743020466013,0.9953,2009.4,2009.3,0.99535]
[1743020466209,0.6674,2009.5,2009.4,0.9953]
[1743020466514,0.9953,2009.4,2009.3,4.34233]
[1743020466710,1.66268,2009.5,2009.3,3.347]
[1743020466910,0.6674,2009.5,2009.4,0.9953]
[1743020468107,0.6674,2009.5,2009.1,2.4886]
[1743020468108,3.15554,2009.5,2009.1,4.34243]
[1743020468309,0.99533,2009.4,2009.2,0.99538]
[1743020468615,0.99535,2009.3,2009.2,0.99538]
[1743020469013,0.99539,2009.3,2009.1,3.347]
[1743020469213,0.7174,2009.2,2009.1,4.34245]
[1743020471621,0.7174,2009.2,2008.7,7.09611]
[1743020471819,0.99554,2008.9,2008.8,0.69123324]
[1743020472013,3.8897,2009.1,2008.7,6.5548]
[1743020472220,0.99554,2008.9,2008.8,0.99558]
[1743020472522,0.99554,2008.9,2008.7,4.2034]
[1743020472713,0.708,2008.8,2008.7,4.2034]
[1743020473018,0.708,2008.8,2008.7,4.89525043]
[1743020473210,0.708,2008.8,2008.7,6.27505043]
[1743020473411,0.708,2008.8,2008.7,7.38240539]
[1743020474119,0.708,2008.8,2008.7,6.27505043]
[1743020474717,3.8897,2009.1,2009.0,0.9955]
[1743020474920,0.99544,2009.2,2009.1,0.99545]
[1743020475120,4.6005,2009.4,2009.1,0.99545]
[1743020475522,4.6005,2009.4,2009.2,1.3418]
[1743020475523,0.99535,2009.3,2009.2,1.3418]
[1743020476023,0.99535,2009.3,2009.2,2.3372]
[1743020476211,5.59582,2009.4,2009.3,0.99535]
[1743020476415,5.5958,2009.4,2009.3,2.40535]
[1743020479025,0.00746454,2009.8,2009.6,0.99515]
[1743020479026,3.21526454,2009.8,2009.6,0.99515]
[1743020479225,1.69606,2009.7,2009.6,0.99515]
[1743020479613,1.69607,2009.7,2009.6,0.9952]
[1743020480016,0.9953,2009.5,2009.4,0.99528]
[1743020480218,0.99535,2009.3,2009.2,0.99535]
[1743020480516,0.99535,2009.3,2009.2,2.30967]
[1743020480712,1.66203,2009.4,2009.2,1.3143]
[1743020480915,1.66203,2009.4,2009.3,0.99535]
[1743020481120,0.6667,2009.4,2009.3,0.99535]
[1743020481312,0.7009,2009.5,2009.4,0.9953]
[1743020481518,0.7009,2009.5,2009.4,2.3096]
[1743020481824,1.69615,2009.5,2009.4,2.3096]
[1743020483527,1.4066,2009.6,2009.5,0.99525]
[1743020483528,2.40182,2009.6,2009.5,0.99525]
[1743020483725,2.40182,2009.6,2009.5,2.32215]
[1743020484028,1.4066,2009.6,2009.5,2.32215]
[1743020484424,2.4018,2009.6,2009.5,2.32215]
[1743020485627,0.6667,2009.7,2009.5,1.3269]
[1743020485927,0.99515,2009.7,2009.6,1.3926]
[1743020486125,2.34085,2009.7,2009.6,1.3926]
[1743020486729,3.83363,2009.7,2009.4,0.99528]
[1743020486931,2.3409,2009.6,2009.5,1.3926]
[1743020488625,2.3409,2009.6,2009.5,2.38785]
[1743020489027,2.3409,2009.6,2009.5,1.3926]
[1743020489226,2.3409,2009.6,2009.5,2.38785]
[1743020489426,1.3457,2009.6,2009.5,2.38785]
[1743020489627,2.3409,2009.6,2009.5,2.38785]
[1743020489828,1.3457,2009.6,2009.5,2.38785]
[1743020490132,0.99519,2009.7,2009.6,0.9952]
[1743020490333,2.39889,2009.7,2009.6,2.3463]
[1743020490533,2.39885,2009.7,2009.6,2.3463]
[1743020490739,0.00746454,2009.8,2009.7,0.99515]
[1743020490929,0.00746454,2009.8,2009.7,3.76185]
[1743020491334,0.00746454,2009.8,2009.7,4.16080789]
[1743020491637,0.00746454,2009.8,2009.7,45.65063412]
[1743020493940,0.00746454,2009.8,2009.7,45.65014821]
[1743020494237,0.68,2010.3,2010.2,0.9949]
[1743020494530,0.99475,2010.5,2010.4,0.99479]
[1743020494735,1.3979,2010.6,2010.4,0.99479]
[1743020494929,1.3979,2010.6,2010.2,0.6839]
[1743020494930,2.39263,2010.6,2010.2,1.3707]
[1743020495130,2.39263,2010.6,2010.0,6.5528]
[1743020495131,3.2078,2010.4,2010.0,3.2078]
[1743020495330,0.99485,2010.3,2010.2,0.00746454]
[1743020495530,2.38335,2010.3,2010.2,0.00746454]
[1743020496640,4.88335,2010.3,2010.2,0.00746454]
[1743020496936,0.99511,2009.8,2009.7,2.32535]
[1743020497139,4.20291,2009.8,2009.7,2.32535]
[1743020497738,3.2078,2009.8,2009.7,2.32535]
[1743020497937,1.3885,2010.0,2009.9,0.99505]
[1743020498339,3.2078,2010.1,2010.0,0.995]
[1743020498543,5.83,2010.4,2010.3,0.99485]
[1743020498544,6.82484,2010.4,2010.3,0.99485]
[1743020498733,1.68314,2010.4,2010.2,0.99489]
[1743020499041,0.6883,2010.4,2010.2,0.99489]
[1743020499347,0.6883,2010.4,2010.3,0.99485]
[1743020500142,2.0534,2010.4,2010.3,0.99485]
[1743020501150,3.0482,2010.4,2010.3,0.99485]
[1743020501342,1.3651,2010.4,2010.3,0.99485]
[1743020501533,3.2078,2010.5,2010.4,0.9948]
[1743020502038,0.9948,2010.4,2010.3,4.33982]
[1743020502239,2.4013,2010.4,2010.3,4.33982]
[1743020502741,1.4065,2010.4,2010.2,3.345]
[1743020502935,1.4065,2010.3,2010.2,4.33986]
[1743020503141,0.9949,2010.2,2010.1,0.99492]
[1743020503336,0.99495,2010.1,2010.0,3.2078]
[1743020503543,2.40145,2010.1,2009.9,5.80852]
[1743020503748,1.4065,2010.1,2010.0,0.995]
[1743020504147,3.2078,2010.5,2010.2,0.99489]
[1743020504349,1.43086454,2010.6,2010.4,0.9948]
[1743020504551,2.42557454,2010.6,2010.3,5.76772]
[1743020504749,0.99475,2010.5,2010.3,1.4229]
[1743020504948,1.4234,2010.5,2010.3,1.4229]
[1743020505249,0.00746454,2010.6,2010.5,0.99475]
[1743020505457,0.00746454,2010.6,2010.5,4.39075]
[1743020506351,0.00746454,2010.6,2010.5,3.396]
[1743020506546,1.00216454,2010.6,2010.5,3.396]
[1743020506742,1.00216454,2010.6,2010.3,2.41772]
[1743020506743,0.00746454,2010.6,2010.3,1.4229]
[1743020506948,0.99477,2010.5,2010.3,4.8219]
[1743020507248,1.3361,2010.4,2010.3,4.8219]
[1743020507451,0.00746454,2010.6,2010.3,4.8219]
[1743020507645,0.00746454,2010.6,2010.5,0.99475]
[1743020508452,1.00218454,2010.6,2010.3,5.81673]
[1743020508649,1.3361,2010.5,2010.3,4.8219]
[1743020508849,1.3361,2010.5,2010.3,5.81673]
[1743020509050,2.33086,2010.5,2010.3,4.8219]
[1743020509247,0.7224,2010.4,2010.3,4.122]
[1743020509447,2.0585,2010.4,2010.3,4.122]
[1743020510352,2.0585,2010.4,2010.3,4.39385]
[1743020512962,0.00746454,2010.6,2010.4,0.99476]
[1743020513265,0.00746454,2010.6,2010.5,0.99475]
[1743020513455,0.00746454,2010.6,2010.4,2.29806]
[1743020513661,1.33786454,2010.6,2010.4,2.29806]
[1743020513860,1.33786454,2010.6,2010.5,1.3033]
[1743020514058,0.00746454,2010.6,2010.5,2.29805]
[1743020515162,1.33786454,2010.6,2010.5,2.29805]
[1743020515565,0.00746454,2010.6,2010.5,2.29805]
[1743020517555,0.00746454,2010.6,2010.5,5.50585]
[1743020518660,0.00746454,2010.6,2010.5,2.29805]
[1743020519466,0.00746454,2010.6,2010.5,1.3033]
[1743020519666,0.99479,2010.5,2010.3,4.39384]
[1743020519853,1.69231454,2010.6,2010.4,2.4188]
[1743020520057,1.69231454,2010.6,2010.5,1.424]
[1743020520862,1.00216454,2010.6,2010.5,1.424]
[1743020521073,1.69226454,2010.6,2010.5,2.41875]
[1743020521271,1.69226454,2010.6,2010.5,1.424]
[1743020522673,1.69226454,2010.6,2010.5,2.41875]
[1743020523168,1.69226454,2010.6,2010.5,1.424]
[1743020523365,1.69226454,2010.6,2010.5,2.41875]
[1743020523674,1.69226454,2010.6,2010.5,1.424]
[1743020523872,1.69226454,2010.6,2010.5,2.41875]
[1743020524873,0.69756454,2010.6,2010.5,2.41875]
[1743020525177,1.69226454,2010.6,2010.5,1.424]
[1743020529880,0.69756454,2010.6,2010.5,2.41875]
[1743020530070,1.69226454,2010.6,2010.5,2.41875]
[1743020530375,0.00746454,2010.6,2010.5,2.41875]
[1743020530578,1.00216454,2010.6,2010.5,2.41875]
[1743020530879,0.00746454,2010.6,2010.5,2.41875]
[1743020532078,0.00746454,2010.6,2010.5,3.11063673]
[1743020532474,0.00746454,2010.6,2010.5,3.11072997]
[1743020532979,1.37536454,2010.6,2010.5,3.11072997]
[1743020533570,2.37006454,2010.6,2010.5,1.424]
[1743020533878,2.37006454,2010.6,2010.5,2.11615909]
[1743020534076,2.37006454,2010.6,2010.5,3.11090909]
[1743020534377,2.37006454,2010.6,2010.5,2.11615909]
[1743020534575,2.37006454,2010.6,2010.5,1.424]
[1743020536675,3.87536454,2010.6,2010.0,40.8]
[1743020536877,4.2027,2010.2,2010.1,0.69278961]
[1743020537176,4.2027,2010.2,2010.1,2.43835]
[1743020537786,5.6057,2010.2,2010.1,2.43835]
[1743020538280,0.99505,2009.9,2009.6,3.2078]
[1743020538483,2.1372,2010.1,2009.9,0.99505]
[1743020538674,0.99505,2009.9,2009.8,2.39806]
[1743020538878,0.99505,2009.9,2009.8,2.09557277]
[1743020539072,4.87635,2009.9,2009.8,1.403]
[1743020539383,0.9951,2009.8,2009.7,40.8]
[1743020539580,2.3981,2009.8,2009.7,40.8]
[1743020540580,0.99515,2009.7,2009.6,1.403]
[1743020540776,3.14985,2009.7,2009.6,1.403]
[1743020540984,2.1547,2009.7,2009.6,2.3982]
[1743020541581,3.14985,2009.7,2009.6,2.3982]
[1743020542578,3.14985,2009.7,2009.6,1.403]
[1743020545479,3.14985,2009.7,2009.6,4.6108]
[1743020545480,2.1547,2009.7,2009.6,4.6108]
[1743020545682,2.48714,2010.3,2009.6,4.6108]
[1743020545985,0.99506,2009.9,2009.7,3.77941]
[1743020546175,0.99506,2009.9,2009.8,1.3961]
[1743020546374,2.48763,2009.9,2009.5,40.80746454]
[1743020546674,0.99515,2009.7,2009.6,1.4042]
[1743020547174,2.31755,2009.7,2009.6,1.4042]
[1743020549481,0.9952,2009.6,2009.5,0.00746454]
[1743020549684,0.9952,2009.6,2009.2,0.6793]
[1743020549685,0.9953,2009.4,2009.3,1.3778]
[1743020549987,0.9954,2009.2,2009.1,40.8]
[1743020550282,0.9954,2009.2,2009.1,1.3778]
[1743020550683,2.3171,2009.2,2009.1,1.3778]
[1743020550886,2.3171,2009.2,2009.1,2.37325]
[1743020552883,2.3171,2009.2,2009.1,1.3778]
[1743020553388,2.3171,2009.2,2009.1,2.37325]
[1743020553981,2.3171,2009.2,2009.1,1.3778]
[1743020554492,2.3171,2009.2,2009.1,2.37325]
[1743020554790,2.3171,2009.2,2009.1,1.3778]
[1743020559091,0.9955,2009.0,2008.9,1.00300454]
[1743020559391,0.9955,2009.0,2008.9,2.30770454]
[1743020561882,0.9955,2009.0,2008.9,1.31216454]
[1743020562077,0.9955,2009.0,2008.9,2.30770454]
[1743020562284,0.9955,2009.0,2008.9,43.10770454]
[1743020565092,0.9955,2009.0,2008.9,42.11216454]
[1743020565293,0.9955,2009.0,2008.9,43.10770454]
[1743020570091,1.3557,2009.2,2009.1,0.99545]
[1743020570388,0.99545,2009.1,2009.0,1.4054]
[1743020570585,4.20325,2009.1,2009.0,1.4054]
[1743020571789,4.20325,2009.1,2009.0,2.4009]
[1743020572498,0.99545,2009.1,2009.0,3.0862]
[1743020573093,0.99545,2009.1,2009.0,1.4054]
[1743020573301,0.9955,2009.0,2008.9,0.00746454]
[1743020573486,3.0176,2009.0,2008.9,0.00746454]
[1743020573892,3.0176,2009.0,2008.9,1.34336454]
[1743020574394,3.2078,2009.1,2008.9,1.34336454]
[1743020574592,3.2078,2009.1,2008.9,2.33887454]
[1743020574593,4.20328,2009.1,2008.9,2.33887454]
[1743020574801,4.20328,2009.1,2009.0,0.742]
[1743020575095,4.20328,2009.1,2009.0,2.0779]
[1743020578105,4.20328,2009.1,2009.0,3.0734]
[1743020578305,1.3986,2009.2,2009.1,0.99545]
[1743020578602,0.9954,2009.2,2009.1,2.3867294]
[1743020578802,0.9954,2009.2,2009.1,3.7738294]
[1743020579404,0.9954,2009.2,2009.1,3.7738694]
[1743020579405,2.3953,2009.2,2009.1,3.7738694]
[1743020580101,2.3953,2009.2,2009.1,3.77450082]
[1743020582694,2.3953,2009.2,2009.1,2.77905082]
[1743020582903,2.3953,2009.2,2009.1,2.08065082]
[1743020583108,0.9955,2009.0,2008.9,0.00746454]
[1743020583407,0.9955,2009.0,2008.9,0.70140761]
[1743020583598,0.9955,2009.0,2008.9,2.01420761]
[1743020583800,0.9955,2009.0,2008.9,3.12425658]
[1743020583999,0.9955,2009.0,2008.9,2.01420761]
[1743020584499,1.677,2009.0,2008.9,2.01420761]
[1743020586001,1.677,2009.0,2008.9,3.00974761]
[1743020586510,1.677,2009.0,2008.9,2.01420761]
[1743020586715,1.677,2009.0,2008.9,3.00974761]
[1743020587008,1.677,2009.0,2008.9,0.70133886]
[1743020587304,1.677,2009.0,2008.9,2.07913886]
[1743020588913,1.677,2009.0,2008.9,2.07914744]
[1743020589812,1.677,2009.0,2008.9,3.07468744]
[1743020590108,0.9955,2009.0,2008.9,3.07468744]
[1743020590711,2.3863,2009.0,2008.9,3.07468744]
[1743020591011,2.3863,2009.0,2008.9,2.07912901]
[1743020591307,3.2078,2009.2,2008.9,2.07912901]
[1743020591507,0.99548,2009.1,2009.0,2.05105071]
[1743020591708,2.38628,2009.1,2009.0,2.05105071]
[1743020591908,2.38628,2009.1,2009.0,1.3572]
[1743020592503,2.38628,2009.1,2009.0,2.3527]
[1743020592810,2.38625,2009.1,2009.0,2.3527]
[1743020593003,2.38625,2009.1,2009.0,1.3572]
[1743020593503,2.38625,2009.1,2009.0,3.04652042]
[1743020594502,1.3865,2009.3,2009.2,0.9954]
[1743020594702,2.8018,2009.3,2009.1,2.0272]
[1743020594904,3.79716,2009.3,2009.2,2.3045]
[1743020595307,1.4153,2009.3,2009.2,2.3045]
[1743020595501,1.00276454,2009.4,2009.3,0.99535]
[1743020595703,1.32026454,2009.4,2009.3,3.10815]
[1743020596106,1.32026454,2009.4,2009.3,3.80163489]
[1743020596306,1.32026454,2009.4,2009.3,3.10815]
[1743020596714,1.32026454,2009.4,2009.3,3.80140575]